fUST/lending_fUST_20240723
["ID","MTS","AMOUNT","RATE_DAILY","PERIOD"]
[332935659,1721683866943,-500.0,0.00015068,2]
[332935660,1721683866952,-318.18026422,0.00015068,2]
[332935661,1721683866965,-500.0,0.00015068,2]
[332935662,1721683866974,-500.0,0.00015068,2]
[332935663,1721683866983,-500.0,0.00015068,2]
[332935664,1721683866994,-500.0,0.00015068,2]
[332935665,1721683867004,-500.0,0.00015068,2]
[332935666,1721683867014,-500.0,0.00015068,2]
[332935667,1721683867024,-389.65926264,0.00015068,2]
[332935668,1721683867033,-500.0,0.00015068,2]
[332935669,1721683867044,-500.0,0.00015068,2]
[332935670,1721683867054,-232.80705897,0.00015068,2]
[332935671,1721683867063,-500.0,0.00015068,2]
[332935672,1721683867074,-500.0,0.00015068,2]
[332935673,1721683867084,-500.0,0.00015068,2]
[332935674,1721683867093,-500.0,0.00015068,2]
[332935675,1721683867102,-500.0,0.00015068,2]
[332935676,1721683867111,-500.0,0.00015068,2]
[332935677,1721683867121,-500.0,0.00015068,2]
[332935678,1721683867131,-500.0,0.00015068,2]
[332935679,1721683867140,-500.0,0.00015068,2]
[332935680,1721683867152,-500.0,0.00015068,2]
[332935681,1721683867161,-151.0,0.00015068,2]
[332935682,1721683867170,-500.0,0.00015068,2]
[332935683,1721683867179,-500.0,0.00015068,2]
[332935684,1721683867188,-500.0,0.00015068,2]
[332935685,1721683867198,-500.0,0.00015068,2]
[332935686,1721683867208,-217.774323,0.00015068,2]
[332935687,1721683867218,-500.0,0.00015068,2]
[332935688,1721683867227,-217.774323,0.00015068,2]
[332935689,1721683867237,-500.0,0.00015068,2]
[332935690,1721683867246,-500.0,0.00015068,2]
[332935691,1721683867255,-500.0,0.00015068,2]
[332935692,1721683867264,-500.0,0.00015068,2]
[332935693,1721683867274,-500.0,0.00015068,2]
[332935694,1721683867283,-500.0,0.00015068,2]
[332935695,1721683867292,-500.0,0.00015068,2]
[332935696,1721683867303,-561.06,0.00015068,2]
[332935697,1721683867313,-151.0,0.00015068,2]
[332935698,1721683867323,-151.0,0.00015068,2]
[332935699,1721683867332,-500.0,0.00015068,2]
[332935700,1721683867342,-500.0,0.00015068,2]
[332935701,1721683867352,-500.0,0.00015068,2]
[332935702,1721683867362,-151.0,0.00015068,2]
[332935703,1721683867372,-500.0,0.00015068,2]
[332935704,1721683867382,-500.0,0.00015068,2]
[332935705,1721683867392,-500.0,0.00015068,2]
[332935706,1721683867402,-500.0,0.00015068,2]
[332935707,1721683867531,-500.0,0.00015068,2]
[332935708,1721683867541,-500.0,0.00015068,2]
[332935709,1721683867551,-500.0,0.00015068,2]
[332935710,1721683867562,-500.0,0.00015068,2]
[332935711,1721683867574,-500.0,0.00015068,2]
[332935712,1721683867584,-500.0,0.00015068,2]
[332935713,1721683867595,-500.0,0.00015068,2]
[332935714,1721683867605,-500.0,0.00015068,2]
[332935715,1721683867615,-500.0,0.00015068,2]
[332935716,1721683867624,-500.0,0.00015068,2]
[332935717,1721683867633,-500.0,0.00015068,2]
[332935718,1721683867643,-200.0,0.00015189,2]
[332935719,1721683867653,-200.0,0.00015189,2]
[332935720,1721683867663,-1519.57,0.00015342,2]
[332935721,1721683867673,-452.36,0.00015342,2]
[332935722,1721683867682,-597.79,0.00015342,2]
[332935723,1721683867692,-500.0,0.00015342,2]
[332935724,1721683867702,-500.0,0.00015342,2]
[332935725,1721683867711,-623.65,0.00015342,2]
[332935726,1721683867721,-500.0,0.00015342,2]
[332935727,1721683867731,-518.11,0.00015342,2]
[332935728,1721683867741,-795.02,0.00015342,2]
[332935729,1721683867751,-318.15,0.00015342,2]
[332935730,1721683867760,-641.92,0.00015342,2]
[332935731,1721683867770,-537.07,0.00015342,2]
[332935732,1721683867780,-500.0,0.00015342,2]
[332935733,1721683867790,-500.0,0.00015342,2]
[332935734,1721683867800,-500.0,0.00015342,2]
[332935735,1721683867810,-597.26,0.00015342,2]
[332935736,1721683867820,-500.0,0.00015342,2]
[332935737,1721683867829,-500.0,0.00015342,2]
[332935738,1721683867839,-500.0,0.00015342,2]
[332935739,1721683867848,-500.0,0.00015342,2]
[332935740,1721683867858,-2415.94,0.00015342,2]
[332935741,1721683867868,-500.0,0.00015342,2]
[332935742,1721683867878,-500.0,0.00015342,2]
[332935743,1721683867888,-1527.75,0.00015342,2]
[332935744,1721683867903,-435.93,0.00015342,2]
[332935745,1721683867913,-500.0,0.00015342,2]
[332935746,1721683867923,-500.0,0.00015342,2]
[332935747,1721683867933,-500.0,0.00015342,2]
[332935748,1721683867943,-3564.76,0.00015342,2]
[332935749,1721683867952,-166.11,0.00015342,2]
[332935750,1721683867962,-500.0,0.00015342,2]
[332935751,1721683867973,-611.41,0.00015342,2]
[332935752,1721683867983,-511.22,0.00015342,2]
[332935753,1721683867992,-500.0,0.00015342,2]
[332935754,1721683868002,-500.0,0.00015342,2]
[332935755,1721683868011,-500.35,0.00015342,2]
[332935756,1721683868022,-500.0,0.00015342,2]
[332935757,1721683868032,-500.0,0.00015342,2]
[332935758,1721683868043,-1301.61,0.00015342,2]
[332935759,1721683868054,-752.07,0.00015342,2]
[332935760,1721683868064,-532.91,0.00015342,2]
[332935761,1721683868076,-500.0,0.00015342,2]
[332935762,1721683868085,-500.0,0.00015342,2]
[332935763,1721683868095,-635.08,0.00015342,2]
[332935764,1721683868104,-500.0,0.00015342,2]
[332935765,1721683868114,-500.0,0.00015342,2]
[332935766,1721683868124,-500.0,0.00015342,2]
[332935767,1721683868134,-500.0,0.00015342,2]
[332935768,1721683868144,-581.59517477,0.00015342,2]
[332935769,1721683868155,-500.0,0.00015342,2]
[332935770,1721683868164,-853.08,0.00015342,2]
[332935771,1721683868174,-500.0,0.00015342,2]
[332935772,1721683868184,-500.0,0.00015342,2]
[332935773,1721683868193,-500.0,0.00015342,2]
[332935774,1721683868202,-1728.95,0.00015342,2]
[332935775,1721683868211,-500.0,0.00015342,2]
[332935776,1721683868221,-500.0,0.00015342,2]
[332935777,1721683868230,-397.81,0.00015342,2]
[332935778,1721683868240,-500.0,0.00015342,2]
[332935779,1721683868250,-500.0,0.00015342,2]
[332935780,1721683868259,-500.0,0.00015342,2]
[332935781,1721683868269,-500.0,0.00015342,2]
[332935782,1721683868279,-469.64651285,0.00015342,2]
[332935783,1721683868288,-500.0,0.00015342,2]
[332935784,1721683868297,-500.0,0.00015342,2]
[332935785,1721683868307,-500.0,0.00015342,2]
[332935786,1721683868316,-728.38,0.00015342,2]
[332935787,1721683868325,-500.0,0.00015342,2]
[332935788,1721683868335,-500.0,0.00015342,2]
[332935789,1721683868345,-500.0,0.00015342,2]
[332935790,1721683868355,-500.0,0.00015342,2]
[332935791,1721683868364,-515.35,0.00015342,2]
[332935792,1721683868376,-598.50153424,0.00015342,2]
[332935793,1721683868386,-500.0,0.00015342,2]
[332935794,1721683868397,-646.31,0.00015342,2]
[332935795,1721683868409,-500.0,0.00015342,2]
[332935796,1721683868418,-500.0,0.00015342,2]
[332935797,1721683868428,-504.25,0.00015342,2]
[332935798,1721683868438,-500.0,0.00015342,2]
[332935799,1721683868451,-500.0,0.00015342,2]
[332935800,1721683868462,-1549.48,0.00015342,2]
[332935801,1721683868472,-500.0,0.00015342,2]
[332935802,1721683868482,-500.0,0.00015342,2]
[332935803,1721683868492,-500.0,0.00015342,2]
[332935804,1721683868501,-500.0,0.00015342,2]
[332935805,1721683868511,-500.0,0.00015342,2]
[332935806,1721683868521,-619.85,0.00015342,2]
[332935807,1721683868531,-500.0,0.00015342,2]
[332935808,1721683868540,-500.0,0.00015342,2]
[332935809,1721683868550,-727.98,0.00015342,2]
[332935810,1721683868559,-500.0,0.00015342,2]
[332935811,1721683868569,-612.79,0.00015342,2]
[332935812,1721683868578,-500.0,0.00015342,2]
[332935813,1721683868588,-500.0,0.00015342,2]
[332935814,1721683868598,-500.0,0.00015342,2]
[332935815,1721683868608,-500.0,0.00015342,2]
[332935816,1721683868617,-500.0,0.00015342,2]
[332935817,1721683868628,-500.0,0.00015342,2]
[332935818,1721683868639,-500.0,0.00015342,2]
[332935819,1721683868649,-500.0,0.00015342,2]
[332935820,1721683868659,-500.0,0.00015342,2]
[332935821,1721683868668,-500.0,0.00015342,2]
[332935822,1721683868678,-500.0,0.00015342,2]
[332935823,1721683868688,-500.0,0.00015342,2]
[332935824,1721683868699,-500.0,0.00015342,2]
[332935825,1721683868709,-500.0,0.00015342,2]
[332935826,1721683868719,-500.0,0.00015342,2]
[332935827,1721683868729,-500.0,0.00015342,2]
[332935828,1721683868738,-420.58,0.00015342,2]
[332935829,1721683868749,-500.0,0.00015342,2]
[332935830,1721683868758,-591.81,0.00015342,2]
[332935831,1721683868767,-500.0,0.00015342,2]
[332935832,1721683868777,-237.28,0.00015342,2]
[332935833,1721683868787,-500.0,0.00015342,2]
[332935834,1721683868797,-500.0,0.00015342,2]
[332935835,1721683868809,-500.0,0.00015342,2]
[332935836,1721683868820,-500.0,0.00015342,2]
[332935837,1721683868832,-500.0,0.00015342,2]
[332935838,1721683868842,-500.0,0.00015342,2]
[332935839,1721683868851,-500.0,0.00015342,2]
[332935840,1721683868861,-500.0,0.00015342,2]
[332935841,1721683868871,-500.0,0.00015342,2]
[332935842,1721683868882,-500.0,0.00015342,2]
[332935843,1721683868893,-500.0,0.00015342,2]
[332935844,1721683868905,-500.0,0.00015342,2]
[332935845,1721683868916,-500.0,0.00015342,2]
[332935846,1721683868927,-500.0,0.00015342,2]
[332935847,1721683868939,-585.7,0.00015342,2]
[332935848,1721683868949,-500.0,0.00015342,2]
[332935849,1721683868961,-500.0,0.00015342,2]
[332935850,1721683868971,-500.0,0.00015342,2]
[332935851,1721683868981,-500.0,0.00015342,2]
[332935852,1721683868991,-500.0,0.00015342,2]
[332935853,1721683869000,-500.0,0.00015342,2]
[332935854,1721683869010,-505.99,0.00015342,2]
[332935855,1721683869020,-500.0,0.00015342,2]
[332935856,1721683869030,-500.0,0.00015342,2]
[332935857,1721683869040,-500.0,0.00015342,2]
[332935858,1721683869050,-500.0,0.00015342,2]
[332935859,1721683869059,-500.0,0.00015342,2]
[332935860,1721683869070,-500.0,0.00015342,2]
[332935861,1721683869080,-500.0,0.00015342,2]
[332935862,1721683869089,-500.0,0.00015342,2]
[332935863,1721683869099,-628.68,0.00015342,2]
[332935864,1721683869109,-500.0,0.00015342,2]
[332935865,1721683869119,-500.0,0.00015342,2]
[332935866,1721683869129,-500.0,0.00015342,2]
[332935867,1721683869138,-500.0,0.00015342,2]
[332935868,1721683869149,-500.0,0.00015342,2]
[332935869,1721683869158,-500.0,0.00015342,2]
[332935870,1721683869170,-516.65,0.00015342,2]
[332935871,1721683869180,-500.0,0.00015342,2]
[332935872,1721683869190,-500.0,0.00015342,2]
[332935873,1721683869199,-500.0,0.00015342,2]
[332935874,1721683869210,-500.0,0.00015342,2]
[332935875,1721683869220,-500.0,0.00015342,2]
[332935876,1721683869229,-500.0,0.00015342,2]
[332935877,1721683869238,-500.0,0.00015342,2]
[332935878,1721683869248,-500.0,0.00015342,2]
[332935879,1721683869259,-500.0,0.00015342,2]
[332935880,1721683869269,-500.0,0.00015342,2]
[332935881,1721683869279,-500.0,0.00015342,2]
[332935882,1721683869289,-500.0,0.00015342,2]
[332935883,1721683869299,-500.0,0.00015342,2]
[332935884,1721683869309,-500.0,0.00015342,2]
[332935885,1721683869318,-500.0,0.00015342,2]
[332935886,1721683869329,-500.0,0.00015342,2]
[332935887,1721683869339,-527.84,0.00015342,2]
[332935888,1721683869349,-500.0,0.00015342,2]
[332935889,1721683869359,-500.0,0.00015342,2]
[332935890,1721683869369,-500.0,0.00015342,2]
[332935891,1721683869379,-500.0,0.00015342,2]
[332935892,1721683869390,-500.0,0.00015342,2]
[332935893,1721683869400,-500.0,0.00015342,2]
[332935894,1721683869411,-500.0,0.00015342,2]
[332935895,1721683869419,-500.0,0.00015342,2]
[332935896,1721683869428,-500.0,0.00015342,2]
[332935897,1721683869439,-500.0,0.00015342,2]
[332935898,1721683869448,-500.0,0.00015342,2]
[332935899,1721683869458,-500.0,0.00015342,2]
[332935900,1721683869468,-500.0,0.00015342,2]
[332935901,1721683869478,-500.0,0.00015342,2]
[332935902,1721683869489,-500.0,0.00015342,2]
[332935903,1721683869498,-500.0,0.00015342,2]
[332935904,1721683869508,-708.01,0.00015342,2]
[332935905,1721683869518,-500.0,0.00015342,2]
[332935906,1721683869528,-500.0,0.00015342,2]
[332935907,1721683869539,-500.0,0.00015342,2]
[332935908,1721683869547,-500.0,0.00015342,2]
[332935909,1721683869557,-530.16,0.00015342,2]
[332935910,1721683869568,-500.0,0.00015342,2]
[332935911,1721683869577,-500.0,0.00015342,2]
[332935912,1721683869587,-500.0,0.00015342,2]
[332935913,1721683869596,-500.0,0.00015342,2]
[332935914,1721683869606,-500.0,0.00015342,2]
[332935915,1721683869615,-500.0,0.00015342,2]
[332935916,1721683869624,-500.0,0.00015342,2]
[332935917,1721683869634,-500.0,0.00015342,2]
[332935918,1721683869643,-455.54,0.00015342,2]
[332935919,1721683869655,-500.0,0.00015342,2]
[332935920,1721683869665,-500.0,0.00015342,2]
[332935921,1721683869677,-595.18392844,0.00015342,2]
[332935922,1721683869687,-500.0,0.00015342,2]
[332935923,1721683869698,-500.0,0.00015342,2]
[332935924,1721683869708,-500.0,0.00015342,2]
[332935925,1721683869717,-500.0,0.00015342,2]
[332935926,1721683869728,-500.0,0.00015342,2]
[332935927,1721683869737,-500.0,0.00015342,2]
[332935928,1721683869747,-500.0,0.00015342,2]
[332935929,1721683869756,-500.0,0.00015342,2]
[332935930,1721683869766,-500.0,0.00015342,2]
[332935931,1721683869776,-500.0,0.00015342,2]
[332935932,1721683869786,-500.0,0.00015342,2]
[332935933,1721683869795,-500.0,0.00015342,2]
[332935934,1721683869805,-500.0,0.00015342,2]
[332935935,1721683869814,-522.94335517,0.00015342,2]
[332935936,1721683869823,-500.0,0.00015342,2]
[332935937,1721683869833,-500.0,0.00015342,2]
[332935938,1721683869842,-500.0,0.00015342,2]
[332935939,1721683869851,-500.0,0.00015342,2]
[332935940,1721683869861,-500.0,0.00015342,2]
[332935941,1721683869870,-500.0,0.00015342,2]
[332935942,1721683869880,-500.0,0.00015342,2]
[332935943,1721683869895,-500.0,0.00015342,2]
[332935944,1721683869905,-561.06,0.00015342,2]
[332935945,1721683869915,-500.0,0.00015342,2]
[332935946,1721683869924,-500.0,0.00015342,2]
[332935947,1721683869935,-500.0,0.00015342,2]
[332935948,1721683869944,-500.0,0.00015342,2]
[332935949,1721683869954,-151.0,0.00015342,2]
[332935950,1721683869964,-228.64977888,0.00015342,2]
[332935951,1721683869973,-500.0,0.00015342,2]
[332935952,1721683869983,-500.0,0.00015342,2]
[332935953,1721683870095,-500.0,0.00015342,2]
[332935954,1721683870115,-500.0,0.00015342,2]
[332935955,1721683870125,-500.0,0.00015342,2]
[332935956,1721683870134,-500.0,0.00015342,2]
[332935957,1721683870143,-500.0,0.00015342,2]
[332935958,1721683870153,-500.0,0.00015342,2]
[332935959,1721683870162,-151.0,0.00015342,2]
[332935960,1721683870172,-500.0,0.00015342,2]
[332935961,1721683870181,-500.0,0.00015342,2]
[332935962,1721683870191,-505.86525202,0.00015342,2]
[332935963,1721683870202,-1000.0,0.000155,2]
[332935964,1721683870211,-1519.57,0.00015616,2]
[332935965,1721683870221,-597.79,0.00015616,2]
[332935966,1721683870230,-500.0,0.00015616,2]
[332935967,1721683870240,-497.67,0.00015616,2]
[332935968,1721683870250,-623.65,0.00015616,2]
[332935969,1721683870260,-500.0,0.00015616,2]
[332935970,1721683870269,-518.11,0.00015616,2]
[332935971,1721683870278,-795.02,0.00015616,2]
[332935972,1721683870288,-537.07,0.00015616,2]
[332935973,1721683870297,-500.0,0.00015616,2]
[332935974,1721683870306,-500.0,0.00015616,2]
[332935975,1721683870316,-578.49,0.00015616,2]
[332935976,1721683870325,-597.26,0.00015616,2]
[332935977,1721683870335,-500.0,0.00015616,2]
[332935978,1721683870344,-500.0,0.00015616,2]
[332935979,1721683870353,-500.0,0.00015616,2]
[332935980,1721683870363,-500.0,0.00015616,2]
[332935981,1721683870372,-2415.94,0.00015616,2]
[332935982,1721683870381,-500.0,0.00015616,2]
[332935983,1721683870391,-500.0,0.00015616,2]
[332935984,1721683870400,-1527.75,0.00015616,2]
[332935985,1721683870412,-500.0,0.00015616,2]
[332935986,1721683870422,-500.0,0.00015616,2]
[332935987,1721683870432,-500.0,0.00015616,2]
[332935988,1721683870442,-3564.76,0.00015616,2]
[332935989,1721683870452,-500.0,0.00015616,2]
[332935990,1721683870461,-500.0,0.00015616,2]
[332935991,1721683870471,-500.0,0.00015616,2]
[332935992,1721683870481,-500.35,0.00015616,2]
[332935993,1721683870490,-500.0,0.00015616,2]
[332935994,1721683870499,-500.0,0.00015616,2]
[332935995,1721683870509,-1301.61,0.00015616,2]
[332935996,1721683870518,-752.07,0.00015616,2]
[332935997,1721683870527,-532.91,0.00015616,2]
[332935998,1721683870536,-500.0,0.00015616,2]
[332935999,1721683870547,-500.0,0.00015616,2]
[332936000,1721683870556,-635.08,0.00015616,2]
[332936001,1721683870565,-500.0,0.00015616,2]
[332936002,1721683870574,-500.0,0.00015616,2]
[332936003,1721683870584,-500.0,0.00015616,2]
[332936004,1721683870593,-500.0,0.00015616,2]
[332936005,1721683870602,-500.0,0.00015616,2]
[332936006,1721683870611,-853.08,0.00015616,2]
[332936007,1721683870620,-500.0,0.00015616,2]
[332936008,1721683870629,-500.0,0.00015616,2]
[332936009,1721683870638,-500.0,0.00015616,2]
[332936010,1721683870648,-1728.95,0.00015616,2]
[332936011,1721683870660,-500.0,0.00015616,2]
[332936012,1721683870669,-500.0,0.00015616,2]
[332936013,1721683870679,-500.0,0.00015616,2]
[332936014,1721683870688,-500.0,0.00015616,2]
[332936015,1721683870701,-500.0,0.00015616,2]
[332936016,1721683870710,-500.0,0.00015616,2]
[332936017,1721683870719,-500.0,0.00015616,2]
[332936018,1721683870729,-500.0,0.00015616,2]
[332936019,1721683870738,-500.0,0.00015616,2]
[332936020,1721683870747,-728.38,0.00015616,2]
[332936021,1721683870757,-500.0,0.00015616,2]
[332936022,1721683870766,-500.0,0.00015616,2]
[332936023,1721683870775,-500.0,0.00015616,2]
[332936024,1721683870785,-500.0,0.00015616,2]
[332936025,1721683870794,-515.35,0.00015616,2]
[332936026,1721683870804,-500.0,0.00015616,2]
[332936027,1721683870813,-500.0,0.00015616,2]
[332936028,1721683870822,-500.0,0.00015616,2]
[332936029,1721683870831,-504.25,0.00015616,2]
[332936030,1721683870841,-500.0,0.00015616,2]
[332936031,1721683870850,-500.0,0.00015616,2]
[332936032,1721683870859,-1549.48,0.00015616,2]
[332936033,1721683870868,-500.0,0.00015616,2]
[332936034,1721683870879,-467.25,0.00015616,2]
[332936035,1721683870888,-500.0,0.00015616,2]
[332936036,1721683870904,-500.0,0.00015616,2]
[332936037,1721683870913,-500.0,0.00015616,2]
[332936038,1721683870922,-500.0,0.00015616,2]
[332936039,1721683870933,-500.0,0.00015616,2]
[332936040,1721683870942,-727.98,0.00015616,2]
[332936041,1721683870952,-500.0,0.00015616,2]
[332936042,1721683870961,-500.0,0.00015616,2]
[332936043,1721683870972,-500.0,0.00015616,2]
[332936044,1721683870982,-500.0,0.00015616,2]
[332936045,1721683870991,-500.0,0.00015616,2]
[332936046,1721683871001,-500.0,0.00015616,2]
[332936047,1721683871010,-500.0,0.00015616,2]
[332936048,1721683871020,-500.0,0.00015616,2]
[332936049,1721683871029,-500.0,0.00015616,2]
[332936050,1721683871039,-497.59,0.00015616,2]
[332936051,1721683871048,-500.0,0.00015616,2]
[332936052,1721683871057,-500.0,0.00015616,2]
[332936053,1721683871066,-500.0,0.00015616,2]
[332936054,1721683871075,-500.0,0.00015616,2]
[332936055,1721683871085,-500.0,0.00015616,2]
[332936056,1721683871094,-500.0,0.00015616,2]
[332936057,1721683871103,-500.0,0.00015616,2]
[332936058,1721683871112,-500.0,0.00015616,2]
[332936059,1721683871122,-578.61257649,0.00015616,2]
[332936060,1721683871131,-500.0,0.00015616,2]
[332936061,1721683871140,-500.0,0.00015616,2]
[332936062,1721683871150,-371.22,0.00015616,2]
[332936063,1721683871160,-500.0,0.00015616,2]
[332936064,1721683871170,-500.0,0.00015616,2]
[332936065,1721683871181,-500.0,0.00015616,2]
[332936066,1721683871192,-500.0,0.00015616,2]
[332936067,1721683871202,-500.0,0.00015616,2]
[332936068,1721683871212,-500.0,0.00015616,2]
[332936069,1721683871221,-556.1,0.00015616,2]
[332936070,1721683871230,-500.0,0.00015616,2]
[332936071,1721683871239,-500.0,0.00015616,2]
[332936072,1721683871249,-500.0,0.00015616,2]
[332936073,1721683871259,-500.0,0.00015616,2]
[332936074,1721683871268,-500.0,0.00015616,2]
[332936075,1721683871277,-105.26869554,0.00015616,2]
[332936076,1721683871686,-469.40927521,0.00013698,2]
[332936077,1721683871979,-664.83272531,9.999e-05,2]
[332936078,1721683872159,-183.62834626,9.999e-05,2]
[332936079,1721683872169,-30.59072479,0.00013698,2]
[332936080,1721683872179,-500.0,0.00013972,2]
[332936081,1721683872190,-500.0,0.00014246,2]
[332936082,1721683872200,-500.0,0.0001452,2]
[332936083,1721683872211,-500.0,0.00014794,2]
[332936084,1721683872222,-500.0,0.00015068,2]
[332936085,1721683872232,-500.0,0.00015342,2]
[332936086,1721683872241,-397.65130446,0.00015616,2]
[332936087,1721683872251,-484.85087696,0.00015616,2]
[332936088,1721683872260,-500.0,0.00015616,2]
[332936089,1721683872270,-500.0,0.00015616,2]
[332936090,1721683872279,-505.99,0.00015616,2]
[332936091,1721683872288,-500.0,0.00015616,2]
[332936092,1721683872298,-500.0,0.00015616,2]
[332936093,1721683872307,-500.0,0.00015616,2]
[332936094,1721683872316,-500.0,0.00015616,2]
[332936095,1721683872326,-500.0,0.00015616,2]
[332936096,1721683872335,-500.0,0.00015616,2]
[332936097,1721683872345,-573.8,0.00015616,2]
[332936098,1721683872355,-500.0,0.00015616,2]
[332936099,1721683872365,-500.0,0.00015616,2]
[332936100,1721683872376,-443.16845473,0.00015616,2]
[332936107,1721684826133,-300.0,9.502e-05,2]
[332936108,1721684826160,-745.74938384,9.503e-05,2]
[332936109,1721684851108,-16698.12635405,9.503e-05,2]
[332936110,1721684851129,-154.71377951,9.999e-05,2]
[332936111,1721684851151,-180.28036357,9.999e-05,2]
[332936112,1721684851182,-154.71377951,9.999e-05,2]
[332936113,1721684851203,-154.83733742,9.999e-05,2]
[332936114,1721684851224,-159.99048305,9.999e-05,2]
[332936115,1721684851245,-156.43671221,9.999e-05,2]
[332936116,1721684851266,-690.57549443,9.999e-05,2]
[332936117,1721684951102,-4203.55353963,9.899e-05,2]
[332936118,1721684951125,-300.0,9.998e-05,2]
[332936119,1721684951147,-36.13983007,9.999e-05,2]
[332936120,1721684951172,-154.71377951,9.999e-05,2]
[332936121,1721684951199,-941.58882029,9.999e-05,2]
[332936122,1721684951220,-154.71377951,9.999e-05,2]
[332936123,1721684951243,-154.71377951,9.999e-05,2]
[332936124,1721684951266,-531.29167136,9.999e-05,2]
[332936125,1721684951291,-413.45473308,9.999e-05,2]
[332936126,1721684951315,-154.71377951,9.999e-05,2]
[332936127,1721684951338,-233.23975968,9.999e-05,2]
[332936128,1721684951360,-600.19386734,9.999e-05,2]
[332936129,1721684951382,-155.54259734,9.999e-05,2]
[332936130,1721684951408,-259.0706743,9.999e-05,2]
[332936131,1721684951430,-280.2427444,9.999e-05,2]
[332936132,1721684951450,-1023.91155908,9.999e-05,2]
[332936133,1721684951472,-567.94371923,9.999e-05,2]
[332936134,1721684951495,-154.71377951,9.999e-05,2]
[332936135,1721684951517,-403.29212142,9.999e-05,2]
[332936136,1721684951540,-227.39910273,9.999e-05,2]
[332936137,1721684951562,-208.54118651,9.999e-05,2]
[332936138,1721684951585,-4696.33537857,9.999e-05,2]
[332936139,1721684951606,-234.39039554,9.999e-05,2]
[332936140,1721684951631,-156.56045866,9.999e-05,2]
[332936141,1721684951655,-1625.46116471,9.999e-05,2]
[332936142,1721684951676,-404.3074502,9.999e-05,2]
[332936143,1721684951698,-2106.53631299,9.999e-05,2]
[332936144,1721684951718,-304.52612391,9.999e-05,2]
[332936145,1721684951739,-180.28036357,9.999e-05,2]
[332936146,1721684951762,-154.71377951,9.999e-05,2]
[332936147,1721684951782,-154.71377951,0.0001,2]
[332936148,1721684951803,-287.45478261,0.0001,2]
[332936149,1721684951826,-200.0,0.00010102,2]
[332936150,1721684951853,-17046.61308583,0.00010547,2]
[332936151,1721684955104,-226.43110246,9.999e-05,2]
[332936152,1721684955127,-46.94225985,9.999e-05,2]
[332936153,1721684961089,-107.86420426,9.999e-05,2]
[332936154,1721684961111,-154.71377951,9.999e-05,2]
[332936155,1721684961133,-740.03971728,0.00010547,2]
[332936156,1721684965099,-159.99048305,9.999e-05,2]
[332936157,1721684965121,-209.63850314,9.999e-05,2]
[332936158,1721684965143,-7113.34719689,0.00010547,2]
[332936159,1721684965166,-169.283469,0.00010925,2]
[332936160,1721684965189,-169.283469,0.00010955,2]
[332936161,1721684965211,-169.283469,0.00010985,2]
[332936162,1721684965233,-420.0,0.00010998,2]
[332936163,1721684965254,-169.283469,0.00011015,2]
[332936164,1721684965275,-169.283469,0.00011045,2]